bitfinex/quotes_ETHUSD_20250731
["timestamp","ask_amount","ask_price","bid_price","bid_amount"]
[1753977161839,3.6235616,3788.6,3788.1,4.28]
[1753977161840,6.26307919,3788.6,3788.1,4.28]
[1753977162026,2.63956711,3788.5,3788.1,4.28]
[1753977162231,3.10749637,3788.9,3788.1,4.7787]
[1753977162401,2.6393581,3788.8,3788.1,4.7787]
[1753977162601,2.63963873,3788.4,3788.1,4.7787]
[1753977162805,2.63936283,3788.8,3788.1,4.7787]
[1753977163033,2.63952548,3788.6,3788.1,4.7787]
[1753977163420,2.63954106,3788.6,3788.1,4.7787]
[1753977163823,2.6393581,3788.8,3788.2,0.4987]
[1753977164149,0.13461328,3789.2,3788.3,0.132]
[1753977164353,2.63929357,3788.9,3788.3,2.77169127]
[1753977164513,2.77123118,3789.0,3788.4,2.63963647]
[1753977164713,2.77123118,3789.0,3788.5,4.269]
[1753977164951,2.77123118,3789.0,3788.5,4.7677]
[1753977165116,0.132,3789.0,3788.5,4.7677]
[1753977165453,0.132,3789.0,3788.5,7.97201528]
[1753977165647,0.132,3789.0,3788.6,3.59368339]
[1753977165943,0.132,3789.0,3788.6,0.9542]
[1753977166150,0.132,3789.0,3788.7,0.4968]
[1753977166349,2.63939962,3788.8,3788.5,5.33245513]
[1753977166546,2.63947031,3788.7,3788.5,4.269]
[1753977166754,0.132,3788.6,3788.5,4.269]
[1753977167815,2.77149743,3788.6,3788.5,4.269]
[1753977168016,0.132,3788.6,3788.5,4.269]
[1753977170121,2.77149743,3788.6,3788.5,4.269]
[1753977171474,0.132,3788.6,3788.5,4.269]
[1753977172832,0.24670436,3788.9,3788.7,2.63938567]
[1753977173032,0.24670436,3788.9,3788.5,5.69488]
[1753977173033,2.63845467,3790.1,3788.9,2.63928844]
[1753977173234,0.132,3789.7,3789.4,2.63887385]
[1753977173471,0.132,3789.7,3789.5,4.728]
[1753977173680,0.132,3789.7,3789.5,5.2248]
[1753977173968,0.62533486,3789.7,3789.6,0.4968]
[1753977174348,0.49333486,3789.7,3789.6,3.97559325]
[1753977174549,0.24666743,3789.7,3789.6,4.42809325]
[1753977174749,0.132,3790.3,3789.8,2.63866167]
[1753977175062,0.2467531,3790.2,3789.9,5.3438]
[1753977175271,0.4935062,3790.1,3789.9,5.3438]
[1753977175476,0.4935062,3790.0,3789.9,7.98239204]
[1753977175640,0.4935062,3790.0,3789.9,5.3438]
[1753977175835,0.4935062,3790.0,3789.9,8.43489204]
[1753977176043,0.4935062,3790.0,3789.9,9.63861641]
[1753977176240,0.4935062,3790.0,3789.9,9.18611641]
[1753977176468,0.4935062,3790.0,3789.9,9.63861641]
[1753977177580,0.132,3790.3,3789.9,9.63861641]
[1753977177581,0.132,3790.3,3790.2,2.63838319]
[1753977177781,0.04,3790.9,3790.8,11.53684643]
[1753977177981,0.04,3790.9,3790.8,17.86533634]
[1753977178141,0.04,3790.9,3790.8,18.94663634]
[1753977180578,0.04,3790.9,3790.8,10.04775551]
[1753977184381,0.04,3790.9,3790.8,9.09845551]
[1753977184596,0.04,3790.9,3790.8,21.49413634]
[1753977184880,3.08720135,3792.2,3791.3,2.6376177]
[1753977185089,0.24629913,3792.1,3791.7,2.63729453]
[1753977185245,0.24629913,3792.1,3791.8,7.67460133]
[1753977185581,0.24629913,3792.1,3791.8,7.66626989]
[1753977185781,0.24629913,3792.0,3791.8,8.61556989]
[1753977186080,0.4999,3792.9,3791.8,8.61556989]
[1753977186081,0.04,3792.9,3791.9,2.63720034]
[1753977186267,0.04,3792.9,3792.6,2.63666544]
[1753977186583,0.04,3792.9,3792.7,5.14231579]
[1753977186745,0.04,3792.9,3792.7,5.134]
[1753977187377,0.04,3792.9,3792.8,2.63657456]
[1753977187570,0.28613494,3792.9,3792.7,5.134]
[1753977187754,0.24613494,3792.8,3792.7,7.77064407]
[1753977187958,0.04,3792.9,3792.7,7.77064407]
[1753977188158,0.04,3792.9,3792.7,5.134]
[1753977189598,0.04,3792.9,3792.8,2.64488862]
[1753977189752,0.04,3792.9,3792.8,3.59418785]
[1753977189943,0.53178419,3792.9,3792.8,3.59418785]
[1753977190166,0.53178419,3792.9,3792.8,0.4968]
[1753977190362,0.53178419,3792.9,3792.7,14.54628083]
[1753977190674,0.24564925,3792.8,3792.7,17.1829249]
[1753977190857,0.04,3792.9,3792.7,15.04308083]
[1753977191595,0.28564925,3792.9,3792.8,0.4968]
[1753977191756,0.28564925,3792.9,3792.8,3.13337456]
[1753977191951,0.28564925,3792.9,3792.8,2.57368616]
[1753977192354,0.04,3792.9,3792.8,2.57368616]
[1753977192555,0.04,3792.9,3792.8,2.07688616]
[1753977192794,0.24524196,3793.2,3793.1,2.63636603]
[1753977193084,3.08581368,3794.2,3793.1,16.58885494]
[1753977193251,0.4904372,3794.1,3793.2,1.45665761]
[1753977193455,0.4904372,3794.0,3793.6,8.89888083]
[1753977193758,0.5304372,3793.9,3793.7,4.096]
[1753977194008,0.4904372,3793.8,3793.7,4.096]
[1753977194588,0.2452186,3793.8,3793.7,6.73194907]
[1753977194881,0.04,3793.9,3793.7,4.096]
[1753977195288,0.53015438,3793.9,3793.7,4.096]
[1753977195450,0.2452186,3793.8,3793.7,6.73194907]
[1753977195650,0.04,3793.9,3793.7,4.096]
[1753977196271,0.5285,3793.9,3793.7,4.096]
[1753977196672,0.04,3793.9,3793.7,4.096]
[1753977198198,0.9602,3793.8,3793.5,0.132]
[1753977198384,2.80782938,3793.9,3793.6,4.095]
[1753977198586,0.9602,3793.7,3793.6,4.095]
[1753977198785,3.59614907,3793.7,3793.6,4.095]
[1753977199099,3.72814907,3793.7,3793.4,4.095]
[1753977199406,0.132,3793.4,3793.3,4.095]
[1753977199608,1.0922,3793.4,3793.2,4.095]
[1753977199820,0.6037,3793.4,3793.2,4.095]
[1753977200102,0.4885,3793.3,3793.2,4.095]
[1753977200465,3.59642703,3793.3,3793.0,4.095]
[1753977200796,3.72855934,3793.2,3793.0,4.095]
[1753977200959,2.63636603,3793.1,3793.0,4.095]
[1753977201164,2.63636603,3793.1,3792.1,4.7311]
[1753977201165,0.9602,3793.1,3792.4,2.63680788]
[1753977201375,0.4885,3793.0,3792.5,4.75437996]
[1753977201575,3.59673159,3792.9,3792.5,4.227]
[1753977201906,0.9602,3792.8,3792.5,4.227]
[1753977202064,2.63669481,3792.7,3792.5,4.095]
[1753977202261,3.5969136,3792.6,3792.3,0.132]
[1753977202588,0.9602,3792.5,3792.3,4.095]
[1753977202887,0.9602,3792.5,3792.1,4.095]
[1753977203406,0.132,3792.6,3792.2,0.4811]
[1753977203808,0.132,3792.6,3792.2,3.118079]
[1753977204105,7.19,3795.6,3792.6,2.63666305]
[1753977204106,3.12479599,3793.3,3792.6,2.63666305]
[1753977204288,0.4717,3793.4,3792.7,4.095]
[1753977204492,0.4885,3793.2,3792.7,4.095]
[1753977204802,2.63657456,3792.8,3792.7,4.095]
[1753977205013,0.9602,3792.8,3792.4,4.095]
[1753977205303,3.59686272,3792.7,3792.4,4.095]
[1753977205513,0.9602,3792.6,3792.4,4.095]
[1753977206012,0.9602,3792.5,3792.4,4.095]
[1753977206384,0.9602,3792.5,3792.4,4.24106746]
[1753977206785,3.59698312,3792.5,3792.4,4.24106746]
[1753977207108,2.63700401,3792.2,3791.1,3.04]
[1753977207268,2.63710838,3792.1,3791.4,2.63751913]
[1753977207467,2.63710838,3792.1,3791.5,4.2410684]
[1753977207468,2.63713863,3792.0,3791.5,4.2410684]
[1753977207668,0.4885,3792.0,3791.6,0.1460684]
[1753977207865,0.4885,3792.0,3791.7,0.1460684]
[1753977208083,0.4885,3792.0,3791.8,4.095]
[1753977208304,3.12564291,3792.0,3791.8,4.095]
[1753977208505,0.4885,3792.0,3791.8,4.095]
[1753977208709,3.12564613,3792.0,3791.8,4.095]
[1753977208870,3.59740034,3791.9,3791.8,4.095]
[1753977209071,0.9602,3791.9,3791.8,4.095]
[1753977210181,3.95713214,3791.9,3791.8,0.146204]
[1753977210600,3.95713214,3791.9,3791.8,0.14624949]
[1753977210811,0.9602,3791.9,3791.8,0.14624949]
[1753977211107,2.63718339,3792.0,3791.5,4.095]
[1753977211274,0.55,3792.1,3791.5,4.5761]
[1753977211475,0.4885,3792.0,3791.5,4.095]
[1753977211720,0.9602,3791.9,3791.5,4.095]
[1753977212008,2.637409,3791.6,3791.5,4.095]
[1753977212322,0.9602,3791.6,3791.1,0.04]
[1753977212621,0.9602,3791.5,3791.2,4.095]
[1753977212822,0.9602,3791.4,3791.2,4.095]
[1753977214320,1.0922,3791.4,3791.2,4.095]
[1753977215282,0.6205,3791.4,3791.2,4.095]
[1753977215716,3.25805352,3791.4,3791.2,4.095]
[1753977215919,0.4885,3791.3,3791.2,4.095]
[1753977216105,0.9602,3791.3,3791.2,4.095]
[1753977216427,3.18768727,3791.2,3791.1,0.04]
[1753977216580,7.18085836,3791.2,3791.1,0.04]
[1753977216780,7.27988727,3791.2,3791.1,0.04]
[1753977217619,11.37488727,3791.2,3791.1,0.04]
[1753977219303,7.27988727,3791.2,3791.1,0.04]
[1753977219509,13.09183932,3791.2,3791.1,0.04]
[1753977221337,12.54183932,3791.2,3791.1,0.04]
[1753977221481,13.09183932,3791.2,3791.1,0.04]
[1753977222614,6.31968727,3791.2,3791.1,0.04]
[1753977222816,10.41568727,3791.2,3791.1,0.04]
[1753977223718,6.31968727,3791.2,3791.1,0.04]
[1753977223890,0.132,3791.2,3791.1,0.04]
[1753977224095,2.76968727,3791.2,3791.1,0.04]
[1753977224291,3.72988727,3791.2,3791.1,0.04]
[1753977224515,5.03999703,3791.2,3791.1,0.04]
[1753977225315,7.82588727,3791.2,3791.1,0.04]
[1753977225695,3.72988727,3791.2,3791.1,0.04]
[1753977226004,0.132,3791.2,3791.1,0.9712]
[1753977227514,2.76968727,3791.2,3791.1,0.9712]
[1753977227819,2.76968727,3791.2,3791.1,0.04]
[1753977228224,0.132,3791.2,3791.1,0.04]
[1753977229326,0.132,3791.2,3791.1,0.5297]
[1753977231692,3.9079,3791.9,3791.1,1.3281545]
[1753977231693,4.096,3791.9,3791.1,1.3281545]
[1753977232031,0.132,3791.4,3791.1,0.9676]
[1753977232208,0.132,3791.4,3791.2,0.4897]
[1753977232591,0.132,3791.4,3791.3,0.9276]
[1753977233008,0.132,3791.4,3791.3,0.4897]
[1753977235744,2.63725698,3791.9,3791.3,0.9276]
[1753977235950,2.63734165,3791.7,3791.4,0.99689398]
[1753977236144,0.24626598,3791.6,3791.3,2.76957228]
[1753977236345,2.7693134,3791.8,3791.5,0.4897]
[1753977236552,2.883687,3791.7,3791.5,0.4897]
[1753977236852,0.24629277,3791.6,3791.5,0.4897]
[1753977237347,2.88367846,3791.7,3791.5,0.4897]
[1753977237551,2.76929949,3791.8,3791.5,0.4897]
[1753977237552,0.24629277,3791.6,3791.5,0.4897]
[1753977237749,0.132,3791.8,3791.6,0.4897]
[1753977238052,0.37830195,3791.8,3791.6,0.4897]
[1753977238255,0.24630195,3791.7,3791.6,0.4897]
[1753977238556,0.132,3791.8,3791.6,0.4897]
[1753977238557,0.132,3791.8,3791.6,1.29731473]
[1753977238720,2.63671724,3792.6,3791.9,2.63718819]
[1753977238922,0.62464191,3792.5,3792.0,0.4897]
[1753977239234,0.49264191,3792.4,3792.1,0.4897]
[1753977239426,0.24632019,3792.3,3792.1,0.4897]
[1753977239756,0.24632019,3792.2,3791.9,3.2588987]
[1753977239952,0.24632019,3792.1,3792.0,1.53261247]
[1753977240152,0.24632019,3792.1,3792.0,4.60764327]
[1753977240352,0.37832019,3792.5,3792.0,4.60764327]
[1753977240562,0.24632019,3792.4,3792.1,0.4897]
[1753977240728,0.24632019,3792.3,3792.1,0.4897]
[1753977240934,0.24632019,3792.2,3792.1,0.96366903]
[1753977241132,0.24632019,3792.2,3792.1,0.47396903]
[1753977241525,0.37832019,3792.5,3792.1,0.47396903]
[1753977241741,0.24632019,3792.4,3792.1,0.47396903]
[1753977241940,2.88319177,3792.4,3791.9,0.132]
[1753977242233,1.15422019,3792.3,3791.7,4.227]
[1753977242434,0.37832019,3792.2,3791.7,4.227]
[1753977242858,2.63706579,3792.1,3791.7,4.227]
[1753977243065,2.63725116,3791.9,3791.7,4.095]
[1753977243238,0.37832019,3791.8,3791.7,4.095]
[1753977243733,3.01559008,3791.8,3791.7,4.095]
[1753977244165,0.37832019,3791.8,3791.7,4.095]
[1753977244367,3.01559008,3791.8,3791.7,4.095]
[1753977244567,3.47849008,3791.8,3791.7,4.095]
[1753977244866,3.92349008,3791.8,3791.7,4.095]
[1753977247460,3.47849008,3791.8,3791.7,4.095]
[1753977247768,0.37832019,3791.8,3791.7,4.095]
[1753977248260,2.76926989,3791.8,3791.7,4.095]
[1753977248448,3.01559008,3791.8,3791.7,4.095]
[1753977248653,0.37832019,3791.8,3791.7,4.095]
[1753977249064,0.24632019,3791.8,3791.7,5.2061543]
[1753977249365,0.132,3792.3,3791.9,2.63715963]
[1753977249566,0.132,3792.3,3792.0,3.56470223]
[1753977249768,0.132,3792.3,3792.1,4.094]
[1753977249932,0.37909662,3792.3,3792.1,4.094]
[1753977250138,0.24709662,3792.2,3792.1,4.094]
[1753977251853,0.132,3792.3,3792.1,4.5837]
[1753977252038,0.37909662,3792.3,3792.1,4.094]
[1753977252235,0.24709662,3792.2,3792.1,4.54719]
[1753977252470,0.132,3792.9,3792.3,2.63686285]
[1753977252654,0.24698337,3792.8,3792.4,2.63684693]
[1753977252857,0.24698337,3792.7,3792.5,4.093]
[1753977253157,0.24698337,3792.6,3792.5,4.093]
[1753977253466,0.24698337,3792.8,3792.5,8.17264312]
[1753977253648,0.24698337,3792.8,3792.6,0.9276]
[1753977253968,0.24698337,3792.8,3792.5,4.60826]
[1753977254151,0.24698337,3792.8,3792.5,4.093]
[1753977254672,0.24698337,3792.7,3792.5,4.093]
[1753977254838,0.132,3792.9,3792.5,4.5827]
[1753977255168,0.13476322,3793.5,3792.5,4.5827]
[1753977255169,0.24680787,3793.0,3792.6,3.57262353]
[1753977255372,0.24680787,3792.9,3792.7,0.6217]
[1753977255540,0.132,3793.3,3792.8,1.22484797]
[1753977255741,0.132,3793.3,3792.9,5.0206]
[1753977255948,2.63635492,3793.2,3792.9,4.093]
[1753977256167,0.24667051,3793.1,3792.9,4.093]
[1753977256373,0.24667051,3793.0,3792.9,4.5784]
[1753977256585,0.24667051,3793.0,3792.9,4.093]
[1753977257349,2.91592139,3793.2,3792.9,4.093]
[1753977257654,0.37867051,3793.1,3792.9,4.093]
[1753977257880,0.24667051,3793.0,3792.9,4.093]
[1753977258047,0.24647044,3793.0,3792.9,4.093]
[1753977258252,0.132,3793.1,3792.9,4.093]
[1753977258465,0.132,3793.1,3792.9,4.5784]
[1753977258466,0.37839687,3793.1,3792.9,4.5784]
[1753977258672,0.132,3793.1,3792.9,4.093]
[1753977258879,2.76837228,3793.1,3792.9,4.093]
[1753977259056,0.132,3793.1,3792.9,4.093]
[1753977259263,0.37839196,3793.1,3792.9,4.093]
[1753977259464,3.01476889,3793.1,3792.9,4.093]
[1753977259664,0.24639196,3793.0,3792.9,4.093]
[1753977259851,0.24639196,3793.3,3792.9,4.56404]
[1753977260053,0.24639196,3793.2,3792.9,4.093]
[1753977260859,0.24639196,3793.1,3792.9,4.093]
[1753977261276,0.24631001,3793.0,3792.9,4.093]
[1753977261584,1.17321001,3793.0,3792.9,4.092]
[1753977261755,3.80964554,3793.0,3792.9,4.092]
[1753977264283,1.17321001,3793.0,3792.6,4.092]
[1753977264460,0.37831001,3792.9,3792.7,0.9557]
[1753977264661,3.0,3793.5,3792.6,16.02338185]
[1753977264662,0.132,3793.1,3792.6,16.02338185]
[1753977264851,0.132,3793.1,3792.6,16.15538185]
[1753977265051,0.37835232,3793.1,3792.6,16.15538185]
[1753977265257,2.63645523,3793.0,3792.7,0.9557]
[1753977265457,0.24636971,3792.9,3792.6,4.224]
[1753977265953,0.132,3793.1,3792.6,4.092]
[1753977266159,2.63650921,3792.9,3792.6,4.092]
[1753977267495,2.76850921,3792.9,3792.6,4.092]
[1753977267859,0.132,3792.9,3792.7,0.4854]
[1753977268262,0.132,3793.4,3792.8,1.0877]
[1753977268467,0.132,3793.4,3792.9,4.091]
[1753977268699,2.76815818,3793.4,3793.0,0.00830829]
[1753977268881,2.63623335,3793.3,3793.0,0.4854]
[1753977269326,2.63623335,3793.3,3792.9,4.091]
[1753977269662,2.76817141,3793.4,3792.9,6.31994673]
[1753977270146,2.76820894,3793.4,3792.9,6.31994673]
[1753977270447,2.63634027,3793.2,3792.9,4.091]
[1753977270644,3.56315559,3793.3,3792.9,4.091]
[1753977270804,2.63631583,3793.2,3792.9,4.091]
[1753977271720,2.63637436,3793.1,3792.9,4.091]
[1753977271918,0.132,3793.4,3792.9,4.091]
[1753977272142,2.63629025,3793.3,3792.9,4.091]
[1753977272813,2.6363083,3793.2,3792.9,4.091]
[1753977273242,2.63625112,3793.3,3792.9,4.091]
[1753977273442,2.63625112,3793.3,3792.9,4.89896784]
[1753977275473,2.63631592,3793.2,3792.9,4.89896784]
[1753977275770,2.63631592,3793.2,3792.9,4.091]
[1753977276143,2.63643553,3793.0,3792.9,4.091]
[1753977276345,2.76843553,3793.0,3792.9,4.091]
[1753977276551,3.69533553,3793.0,3792.9,4.091]
[1753977276962,0.6104,3793.0,3792.9,4.091]
[1753977277161,2.76843553,3793.0,3792.9,4.091]
[1753977277375,3.69533553,3793.0,3792.9,4.091]
[1753977279277,3.94201411,3793.0,3792.9,4.091]
[1753977279428,0.55,3792.9,3791.7,1.1586543]
[1753977279635,0.132,3792.3,3791.7,0.132]
[1753977279841,0.132,3792.0,3791.8,4.09]
[1753977280053,2.76913586,3792.0,3791.8,4.09]
[1753977280240,2.76913586,3792.0,3791.8,4.5754]
[1753977280457,0.132,3792.0,3791.8,4.5754]
[1753977281171,0.132,3792.0,3791.9,0.4854]
[1753977281468,2.7691308,3792.0,3791.9,0.4854]
[1753977281767,2.7691308,3792.0,3791.8,4.09]
[1753977281768,2.63720034,3791.9,3791.8,4.09]
[1753977281931,3.11560034,3791.9,3791.8,4.09]
[1753977282137,3.56410034,3791.9,3791.8,4.09]
[1753977282869,3.11560034,3791.9,3791.8,4.09]
[1753977283031,3.56410034,3791.9,3791.8,4.09]
[1753977283968,0.55,3791.8,3791.4,4.09]
[1753977284211,2.63747857,3791.5,3791.4,4.09]
[1753977284373,2.63768727,3791.2,3791.1,0.04]
[1753977284671,6.35265836,3791.2,3791.1,0.04]
[1753977284840,9.1622514,3791.2,3791.1,0.04]
[1753977285437,5.76968727,3791.2,3791.1,0.04]
[1753977285839,0.132,3791.2,3791.1,0.04]
[1753977286039,2.76962925,3791.3,3791.1,0.9957]
[1753977286245,2.63768727,3791.2,3791.1,0.04]
[1753977286446,2.8842091,3791.2,3791.1,0.04]
[1753977286873,2.88421877,3791.2,3791.1,0.04]
[1753977287246,2.63768727,3791.2,3791.1,0.04]
[1753977287849,2.63768727,3791.2,3791.1,4.13]
[1753977288282,3.12258727,3791.2,3791.1,4.13]
[1753977288742,2.63768727,3791.2,3791.1,4.13]
[1753977289249,0.132,3791.3,3791.1,4.13]
[1753977289469,0.132,3791.3,3791.1,4.6051]
[1753977289777,9.23772343,3792.6,3791.2,0.4751]
[1753977289942,0.132,3791.8,3791.3,2.63756467]
[1753977290150,0.132,3791.8,3791.2,2.76966486]
[1753977290375,0.132,3791.8,3791.3,0.4751]
[1753977290579,2.76927321,3791.8,3791.3,2.1788333]
[1753977290900,0.132,3791.8,3791.7,2.63733945]
[1753977291049,0.24611116,3792.5,3791.7,7.65713763]
[1753977291255,0.132,3792.4,3791.9,2.76918636]
[1753977291556,0.132,3792.4,3792.0,0.4751]
[1753977291557,3.01502081,3792.4,3792.0,0.4751]
[1753977291757,2.63702489,3792.2,3792.1,4.09]
[1753977291953,0.132,3792.0,3791.5,0.132]
[1753977292144,0.132,3792.0,3791.6,4.58683765]
[1753977292998,0.132,3792.0,3791.6,5.06193765]
[1753977293179,0.132,3792.0,3791.6,4.092]
[1753977293374,2.63734047,3791.7,3791.5,0.132]
[1753977293685,2.63734047,3791.7,3791.6,4.09]
[1753977293875,0.132,3791.8,3791.6,4.09]
[1753977294485,0.9509,3791.7,3791.6,4.09]
[1753977295374,0.9509,3791.7,3791.1,2.67774189]
[1753977295375,3.58823945,3791.7,3791.1,0.04]
[1753977295547,0.132,3791.3,3791.2,4.09]
[1753977298585,0.132,3791.3,3791.2,4.5651]
[1753977299072,0.9509,3792.0,3791.2,5.0198]
[1753977299679,2.63721561,3791.9,3791.2,5.0198]
[1753977299877,0.132,3791.5,3791.2,5.0198]
[1753977300079,0.132,3791.5,3791.3,0.4751]
[1753977301088,0.132,3791.5,3791.1,0.04]
[1753977301089,2.63768727,3791.2,3791.1,0.04]
[1753977301291,7.90969774,3791.2,3791.1,0.04]
[1753977304288,6.95879774,3791.2,3791.1,0.04]
[1753977304493,7.90969774,3791.2,3791.1,0.04]
[1753977305189,5.63768727,3791.2,3791.1,0.04]
[1753977305389,2.63768727,3791.2,3791.1,0.5151]
[1753977305590,2.63768727,3791.2,3791.1,0.04]
[1753977305798,2.63762906,3791.3,3791.1,0.04]
[1753977306109,6.72614271,3792.0,3791.1,0.04]
[1753977306110,2.63756061,3791.4,3791.1,0.9698]
[1753977306263,2.76958414,3791.4,3791.1,0.9698]
[1753977306462,2.76958414,3791.4,3791.1,0.5151]
[1753977306691,2.63768727,3791.2,3791.1,0.04]
[1753977306895,2.76968727,3791.2,3791.1,0.04]
[1753977307389,0.132,3791.2,3791.1,0.5151]
[1753977307906,2.76948582,3791.5,3791.1,1.43091]
[1753977308062,2.76948582,3791.5,3791.1,0.95581]
[1753977308258,2.63759918,3791.4,3791.2,0.4751]
[1753977308490,0.24656485,3791.3,3791.2,0.4751]
[1753977308758,2.63759918,3791.4,3791.1,0.04]
[1753977309078,2.76950159,3791.5,3791.2,0.4751]
[1753977309281,0.24656315,3791.4,3791.2,0.4751]
[1753977309588,2.63706125,3792.1,3791.3,0.9298]
[1753977309756,0.132,3791.7,3791.4,4.192]
[1753977309958,3.01602102,3791.7,3791.4,4.192]
[1753977310170,0.24667503,3791.6,3791.4,4.192]
[1753977310588,0.24667503,3791.5,3791.4,4.192]
[1753977310760,2.63747857,3791.5,3791.4,4.192]
[1753977310961,0.24667503,3791.5,3791.4,4.192]
[1753977312193,0.24667503,3791.5,3791.4,4.6671]
[1753977312985,0.24667503,3791.5,3791.4,7.86691119]
[1753977313188,0.24685776,3792.0,3791.4,5.68406581]
[1753977313495,0.466,3792.8,3791.8,2.63726989]
[1753977313496,0.24686326,3791.9,3791.8,2.63726989]
[1753977313698,2.76863159,3792.8,3792.1,2.63702425]
[1753977314014,0.49368924,3792.7,3792.2,7.5230761]
[1753977314351,0.49368924,3792.6,3792.2,5.0181]
[1753977314559,0.49368924,3792.5,3792.2,5.0181]
[1753977314834,0.24684462,3792.4,3792.2,5.82909204]
[1753977315030,0.24684462,3792.3,3792.2,5.80869204]
[1753977315204,0.24684462,3792.3,3792.2,4.9977]
[1753977315605,2.88365007,3792.5,3792.2,4.411]
[1753977315805,0.24684462,3792.4,3792.2,4.411]
[1753977316005,2.88369962,3792.4,3792.2,4.411]
[1753977316202,2.8837668,3792.3,3792.2,4.411]
[1753977316439,0.95045609,3792.3,3792.2,4.411]
[1753977316654,0.24684462,3792.3,3792.2,4.411]
[1753977317142,0.24684462,3792.3,3792.2,4.8888]
[1753977317519,3.01563233,3792.5,3792.2,4.8888]
[1753977317746,0.24684462,3792.4,3792.2,4.8888]
[1753977317943,0.132,3792.5,3792.2,4.8888]
[1753977317944,0.24684462,3792.3,3792.2,4.8888]
[1753977318151,0.24684462,3792.5,3792.2,4.8888]
[1753977318330,0.24684462,3792.4,3792.2,4.8888]
[1753977318657,0.24684462,3792.3,3792.2,7.85679304]
[1753977318860,0.24676832,3792.3,3792.2,16.74959001]
[1753977319064,3.09277177,3793.7,3792.2,16.88159001]
[1753977319065,0.132,3793.4,3792.2,16.88159001]
[1753977319213,0.24675489,3793.3,3792.8,2.63653251]
[1753977319414,0.24675489,3793.2,3792.9,5.2749]
[1753977319617,2.63627119,3793.3,3792.9,5.2749]
[1753977319959,2.76818153,3793.4,3792.9,5.2749]
[1753977320250,2.7682037,3793.4,3793.0,0.4778]
[1753977320658,0.132,3793.4,3793.0,0.80435275]
[1753977320866,0.24647644,3793.8,3793.3,0.132]
[1753977321018,2.88236369,3793.8,3793.4,4.406]
[1753977321219,2.80783606,3793.9,3793.4,4.406]
[1753977321447,2.88213729,3793.8,3793.4,4.406]
[1753977321642,2.63588349,3793.8,3793.4,4.406]
[1753977321819,3.52426725,3793.7,3793.4,4.406]
[1753977322025,3.09282991,3793.6,3793.4,4.406]
[1753977322232,3.52432991,3793.6,3793.4,4.406]
[1753977322556,2.63615753,3793.4,3793.2,4.383]
[1753977322758,2.63636603,3793.1,3793.0,4.258]
[1753977322955,7.01678505,3793.1,3793.0,4.258]
[1753977323157,7.14878505,3793.1,3793.0,4.258]
[1753977323370,2.63678312,3792.5,3792.4,4.25]
[1753977323520,2.63678312,3792.5,3792.4,8.496]
[1753977323720,3.7712146,3792.5,3792.4,8.496]
[1753977324058,3.52508312,3792.5,3792.4,4.246]
[1753977324266,3.65708312,3792.5,3792.4,4.246]
[1753977326864,1.0203,3792.5,3792.4,4.246]
[1753977327063,3.65708312,3792.5,3792.4,4.246]
[1753977331534,5.02793064,3792.5,3791.8,4.212]
[1753977331740,2.76924045,3791.9,3791.8,4.212]
[1753977331970,2.76920034,3791.9,3791.8,4.212]
[1753977332170,0.132,3791.9,3791.8,4.212]
[1753977332370,2.76920034,3791.9,3791.8,4.212]
[1753977334289,2.63675583,3792.6,3791.9,2.63715701]
[1753977334479,0.132,3792.4,3792.0,0.9079]
[1753977334645,0.132,3792.4,3792.1,0.9079]
[1753977334845,2.76886132,3792.4,3792.2,4.295]
[1753977335083,0.132,3792.4,3792.2,4.295]
[1753977335261,2.76885742,3792.4,3792.2,4.295]
[1753977335591,0.132,3792.4,3792.2,4.295]
[1753977335803,0.132,3792.4,3792.2,4.7728]
[1753977336851,2.76886269,3792.4,3792.2,4.295]
[1753977337088,0.132,3792.4,3792.2,4.295]
[1753977337289,0.132,3792.8,3792.3,3.54482218]
[1753977337464,0.37827083,3792.8,3792.3,2.63692218]
[1753977337667,0.132,3792.8,3792.4,0.9079]
[1753977337851,3.01486194,3792.8,3792.5,4.315]
[1753977338188,2.76859118,3792.8,3792.5,4.315]
[1753977338357,0.132,3792.8,3792.5,4.315]
[1753977338554,2.76857764,3792.8,3792.5,4.7928]
[1753977338776,2.6367136,3792.6,3792.5,4.315]
[1753977338979,2.7687136,3792.6,3792.5,4.315]
[1753977339290,3.6570136,3792.6,3792.5,4.315]
[1753977339597,4.53275953,3792.6,3792.5,4.315]
[1753977339790,2.63694851,3792.3,3792.2,4.299]
[1753977340168,3.65724851,3792.3,3792.2,4.299]
[1753977340663,4.45371367,3792.3,3792.2,4.299]
[1753977341604,2.63726297,3791.9,3791.4,4.7278]
[1753977341894,2.63699815,3792.2,3791.5,4.29]
[1753977342053,1.4383,3792.3,3791.5,5.1979]
[1753977342251,2.63715533,3792.0,3791.5,5.1979]
[1753977342486,0.132,3791.8,3791.5,4.7201]
[1753977342704,0.132,3791.8,3791.6,0.4778]
[1753977343806,0.132,3791.8,3791.5,4.29]
[1753977344094,0.132,3791.9,3791.6,0.9079]
[1753977344455,0.132,3791.9,3791.6,0.4778]
[1753977344799,2.7692619,3791.9,3791.6,0.4778]
[1753977345269,0.132,3791.9,3791.5,4.29]
[1753977345469,0.132,3791.9,3791.7,0.4778]
[1753977345670,0.132,3791.9,3791.8,4.314]
[1753977346392,2.63697459,3792.3,3791.8,14.17299697]
[1753977346589,2.76885268,3792.4,3791.9,0.132]
[1753977346792,2.76885268,3792.4,3791.9,0.6242]
[1753977346962,2.76885268,3792.4,3792.0,0.474]
[1753977347302,2.76885268,3792.4,3792.1,4.8242]